Workbook

Sheet Заказ
A1: Курс ¥ | B1: 54
A2: № | B2: Наименование | C2: Цена | D2: Кол-во | E2: Сумма
A3: 417 | B3: =IFERROR(VLOOKUP(Реестр_tb[[#This Row],[№]],IF({1,0},Base_tb[№],Base_tb[Name]),2,0)," ") -> шея свиные 2.5кг | C3: =IFERROR(VLOOKUP(Реестр_tb[[#This Row],[№]],IF({1,0},Base_tb[№],Base_tb[Price]),2,0)," ") -> 2200 | D3: 3 | E3: =[Цена]*[Кол-во] -> 6600
A4: 533 | B4: =IFERROR(VLOOKUP(Реестр_tb[[#This Row],[№]],IF({1,0},Base_tb[№],Base_tb[Name]),2,0)," ") -> термопот 5л 220v ZOJIRUSHI CDLCQ50H | C4: =IFERROR(VLOOKUP(Реестр_tb[[#This Row],[№]],IF({1,0},Base_tb[№],Base_tb[Price]),2,0)," ") -> 15000 | D4: 1 | E4: =[Цена]*[Кол-во] -> 15000
A5: 511-B | B5: =IFERROR(VLOOKUP(Реестр_tb[[#This Row],[№]],IF({1,0},Base_tb[№],Base_tb[Name]),2,0)," ") -> туалетная бумага с ароматом 8пачка ящик | C5: =IFERROR(VLOOKUP(Реестр_tb[[#This Row],[№]],IF({1,0},Base_tb[№],Base_tb[Price]),2,0)," ") -> 3200 | D5: 1 | E5: =[Цена]*[Кол-во] -> 3200
A6: 550 | B6: =IFERROR(VLOOKUP(Реестр_tb[[#This Row],[№]],IF({1,0},Base_tb[№],Base_tb[Name]),2,0)," ") -> бумага кухонная | C6: =IFERROR(VLOOKUP(Реестр_tb[[#This Row],[№]],IF({1,0},Base_tb[№],Base_tb[Price]),2,0)," ") -> 300 | D6: 10 | E6: =[Цена]*[Кол-во] -> 3000
A7: 518 | B7: =IFERROR(VLOOKUP(Реестр_tb[[#This Row],[№]],IF({1,0},Base_tb[№],Base_tb[Name]),2,0)," ") -> порошок стиральный 3.2кг | C7: =IFERROR(VLOOKUP(Реестр_tb[[#This Row],[№]],IF({1,0},Base_tb[№],Base_tb[Price]),2,0)," ") -> 1300 | D7: 1 | E7: =[Цена]*[Кол-во] -> 1300
A8: 556 | B8: =IFERROR(VLOOKUP(Реестр_tb[[#This Row],[№]],IF({1,0},Base_tb[№],Base_tb[Name]),2,0)," ") -> ароматный смягчитель для белья белый | C8: =IFERROR(VLOOKUP(Реестр_tb[[#This Row],[№]],IF({1,0},Base_tb[№],Base_tb[Price]),2,0)," ") -> 400 | D8: 2 | E8: =[Цена]*[Кол-во] -> 800
A9: 555 | B9: =IFERROR(VLOOKUP(Реестр_tb[[#This Row],[№]],IF({1,0},Base_tb[№],Base_tb[Name]),2,0)," ") -> ароматный смягчитель для белья красный | C9: =IFERROR(VLOOKUP(Реестр_tb[[#This Row],[№]],IF({1,0},Base_tb[№],Base_tb[Price]),2,0)," ") -> 400 | D9: 2 | E9: =[Цена]*[Кол-во] -> 800
A10: 557 | B10: =IFERROR(VLOOKUP(Реестр_tb[[#This Row],[№]],IF({1,0},Base_tb[№],Base_tb[Name]),2,0)," ") -> ароматный смягчитель для белья розовый | C10: =IFERROR(VLOOKUP(Реестр_tb[[#This Row],[№]],IF({1,0},Base_tb[№],Base_tb[Price]),2,0)," ") -> 400 | D10: 2 | E10: =[Цена]*[Кол-во] -> 800
A11: 551-P | B11: =IFERROR(VLOOKUP(Реестр_tb[[#This Row],[№]],IF({1,0},Base_tb[№],Base_tb[Name]),2,0)," ") -> шампунь SHISEIDO TSUBAKI пакет | C11: =IFERROR(VLOOKUP(Реестр_tb[[#This Row],[№]],IF({1,0},Base_tb[№],Base_tb[Price]),2,0)," ") -> 800 | D11: 3 | E11: =[Цена]*[Кол-во] -> 2400
A12: 552-P | B12: =IFERROR(VLOOKUP(Реестр_tb[[#This Row],[№]],IF({1,0},Base_tb[№],Base_tb[Name]),2,0)," ") -> кондиционер SHISEIDO TSUBAKI пакет | C12: =IFERROR(VLOOKUP(Реестр_tb[[#This Row],[№]],IF({1,0},Base_tb[№],Base_tb[Price]),2,0)," ") -> 800 | D12: 3 | E12: =[Цена]*[Кол-во] -> 2400
A13: 472 | B13: =IFERROR(VLOOKUP(Реестр_tb[[#This Row],[№]],IF({1,0},Base_tb[№],Base_tb[Name]),2,0)," ") -> яблоки зелёные 10кг ящик | C13: =IFERROR(VLOOKUP(Реестр_tb[[#This Row],[№]],IF({1,0},Base_tb[№],Base_tb[Price]),2,0)," ") -> 0 | D13: 1 | E13: =[Цена]*[Кол-во] -> 0
A14: 605 | B14: =IFERROR(VLOOKUP(Реестр_tb[[#This Row],[№]],IF({1,0},Base_tb[№],Base_tb[Name]),2,0)," ") -> яйцо 10кг ящик | C14: =IFERROR(VLOOKUP(Реестр_tb[[#This Row],[№]],IF({1,0},Base_tb[№],Base_tb[Price]),2,0)," ") -> 3200 | D14: 1 | E14: =[Цена]*[Кол-во] -> 3200
A15: 546 | B15: =IFERROR(VLOOKUP(Реестр_tb[[#This Row],[№]],IF({1,0},Base_tb[№],Base_tb[Name]),2,0)," ") -> зубная паста | C15: =IFERROR(VLOOKUP(Реестр_tb[[#This Row],[№]],IF({1,0},Base_tb[№],Base_tb[Price]),2,0)," ") -> 300 | D15: 4 | E15: =[Цена]*[Кол-во] -> 1200
A16: 426 | B16: =IFERROR(VLOOKUP(Реестр_tb[[#This Row],[№]],IF({1,0},Base_tb[№],Base_tb[Name]),2,0)," ") -> баранина 2.5кг | C16: =IFERROR(VLOOKUP(Реестр_tb[[#This Row],[№]],IF({1,0},Base_tb[№],Base_tb[Price]),2,0)," ") -> 6000 | D16: 1 | E16: =[Цена]*[Кол-во] -> 6000
A17: 272 | B17: =IFERROR(VLOOKUP(Реестр_tb[[#This Row],[№]],IF({1,0},Base_tb[№],Base_tb[Name]),2,0)," ") -> молотый кофе UCC GOLDSPECIAL 280г | C17: =IFERROR(VLOOKUP(Реестр_tb[[#This Row],[№]],IF({1,0},Base_tb[№],Base_tb[Price]),2,0)," ") -> 600 | D17: 5 | E17: =[Цена]*[Кол-во] -> 3000
A18: 723 | B18: =IFERROR(VLOOKUP(Реестр_tb[[#This Row],[№]],IF({1,0},Base_tb[№],Base_tb[Name]),2,0)," ") -> соус терияки | C18: =IFERROR(VLOOKUP(Реестр_tb[[#This Row],[№]],IF({1,0},Base_tb[№],Base_tb[Price]),2,0)," ") -> 300 | D18: 1 | E18: =[Цена]*[Кол-во] -> 300
A19: 470 | B19: =IFERROR(VLOOKUP(Реестр_tb[[#This Row],[№]],IF({1,0},Base_tb[№],Base_tb[Name]),2,0)," ") -> мандарины 5кг ящик | C19: =IFERROR(VLOOKUP(Реестр_tb[[#This Row],[№]],IF({1,0},Base_tb[№],Base_tb[Price]),2,0)," ") -> 0 | D19: 1 | E19: =[Цена]*[Кол-во] -> 0
A20: 219 | B20: =IFERROR(VLOOKUP(Реестр_tb[[#This Row],[№]],IF({1,0},Base_tb[№],Base_tb[Name]),2,0)," ") -> конфеты шоколадные KITKAT | C20: =IFERROR(VLOOKUP(Реестр_tb[[#This Row],[№]],IF({1,0},Base_tb[№],Base_tb[Price]),2,0)," ") -> 300 | D20: 5 | E20: =[Цена]*[Кол-во] -> 1500
A21: 218 | B21: =IFERROR(VLOOKUP(Реестр_tb[[#This Row],[№]],IF({1,0},Base_tb[№],Base_tb[Name]),2,0)," ") -> конфеты шоколадные алмонд | C21: =IFERROR(VLOOKUP(Реестр_tb[[#This Row],[№]],IF({1,0},Base_tb[№],Base_tb[Price]),2,0)," ") -> 300 | D21: 3 | E21: =[Цена]*[Кол-во] -> 900
A22: 222 | B22: =IFERROR(VLOOKUP(Реестр_tb[[#This Row],[№]],IF({1,0},Base_tb[№],Base_tb[Name]),2,0)," ") -> конфеты шоколадные Alfort | C22: =IFERROR(VLOOKUP(Реестр_tb[[#This Row],[№]],IF({1,0},Base_tb[№],Base_tb[Price]),2,0)," ") -> 300 | D22: 5 | E22: =[Цена]*[Кол-во] -> 1500
A23: 210 | B23: =IFERROR(VLOOKUP(Реестр_tb[[#This Row],[№]],IF({1,0},Base_tb[№],Base_tb[Name]),2,0)," ") -> печенье различный | C23: =IFERROR(VLOOKUP(Реестр_tb[[#This Row],[№]],IF({1,0},Base_tb[№],Base_tb[Price]),2,0)," ") -> 150 | D23: 5 | E23: =[Цена]*[Кол-во] -> 750
A24: 031 | B24: =IFERROR(VLOOKUP(Реестр_tb[[#This Row],[№]],IF({1,0},Base_tb[№],Base_tb[Name]),2,0)," ") -> ликёр "JACK HONEY" 700мл | C24: =IFERROR(VLOOKUP(Реестр_tb[[#This Row],[№]],IF({1,0},Base_tb[№],Base_tb[Price]),2,0)," ") -> 2200 | D24: 5 | E24: =[Цена]*[Кол-во] -> 11000
A25: Итог | E25: =SUBTOTAL(109,[[Сумма ]]) -> 65650
E26: =Реестр_tb[[#Totals],[Сумма ]]*$B$1/100 -> 35451

Sheet Технический (hidden)
A1: № | B1: Name | C1: Price_
A2: 104 | B2: вино "AKADAMA" белое 1800мл | C2: 1100
A3: 003 | B3: пиво баночное "АСАХИ SUPER DRY" ящик 350мл*24шт | C3: 2500
A4: 004 | B4: пиво бутылочное "АСАХИ SUPER DRY" ящик 633мл*12шт | C4: 2500
A5: 009 | B5: безалкогольное баночное пиво "АСАХИ DRY ZERO" ящик 350мл*24шт | C5: 3000
A6: 022 | B6: виски "BLACK NIKKA" 4л | C6: 2200
A7: 023 | B7: виски "BLACK NIKKA" 1800мл | C7: 1200
A8: 024 | B8: виски "BLACK NIKKA" 700мл | C8: 550
A9: 026 | B9: виски "SUNTORY RED" 1920мл | C9: 1300
A10: 027 | B10: виски "SUNTORY KAKU" 700мл | C10: 1100
A11: 028 | B11: виски "JOHNNIE WALKER BLACK" 700мл | C11: 2400
A12: 029 | B12: виски "JOHNNIE WALKER RED" 700мл | C12: 1200
A13: 030 | B13: виски "JACK DANIEL'S" 700мл | C13: 2200
A14: 031 | B14: ликёр "JACK HONEY" 700мл | C14: 2200
A15: 032 | B15: виски "CHIVAS REGAL 12years" 700мл | C15: 2500
A16: 033 | B16: виски "CHIVAS REGAL 18years" 700мл | C16: 6000
A17: 035 | B17: виски "JAMESON" 700мл | C17: 2000
A18: 036 | B18: виски "TORYS CLASSIC" 4л | C18: 4000
A19: 037 | B19: виски "NIKKA SAMURAI" 750мл | C19: 5000
A20: 038 | B20: виски "JIM BEAM" 700мл | C20: 1200
A21: 039 | B21: ликёр "JIM BEAM APPLE" 700мл | C21: 1200
A22: 040 | B22: ликёр "JIM BEAM HONEY" 700мл | C22: 2000
A23: 041 | B23: виски "Ballantine's 12years" 700мл | C23: 0
A24: 042 | B24: текила "SAUZA GOLD" 750мл | C24: 1700
A25: 043 | B25: текила "SAUZA SILVER" 750мл | C25: 1700
A26: 044 | B26: текила "OLMECA GOLD" 750мл | C26: 2200
A27: 045 | B27: текила "OLMECA SILVER" 750мл | C27: 2200
A28: 046 | B28: бренди "SUNTORY VO" 640мл | C28: 600
A29: 050 | B29: коньяк "HENNESSY VS" с коробки 700мл | C29: 3000
A30: 052 | B30: коньяк "HENNESSY VSOP" 700мл | C30: 7000
A31: 053 | B31: коньяк "CAMUS VSOP" 700мл | C31: 0
A32: 054 | B32: бренди "METAXA 5star" 700мл | C32: 1400
A33: 055 | B33: бренди "METAXA 7star" 700мл | C33: 1800
A34: 056 | B34: бренди "METAXA 12star" 700мл | C34: 3500
A35: 058 | B35: коньяк "REMY MARTIN VSOP" 700мл | C35: 0
A36: 059 | B36: коньяк "SAINT VIVANT VSOP" 700мл | C36: 0
A37: 060 | B37: коньяк "COURVOISIER VSOP" 700мл | C37: 3000
A38: 062 | B38: ликёр "MOZART CHOCOLATE" 500мл | C38: 1600
A39: 063 | B39: коньяк "CALVADOS XO" 700мл | C39: 4500
A40: 064 | B40: водка "ICE" 500мл | C40: 550
A41: 066 | B41: водка "SUNTORY" 720мл | C41: 600
A42: 068 | B42: бабайка тетра пак 1.8л | C42: 1200
A43: 069 | B43: бабайка стеклянная бутылочка 1.8л | C43: 1600
A44: 070 | B44: водка "STOLICHNAYA" 500мл | C44: 900
A45: 072 | B45: водка "SKY" 700мл | C45: 1200
A46: 074 | B46: водка "SPIRYTUS" 500мл | C46: 1700
A47: 075 | B47: водка "ABSOLUT" 750мл | C47: 1200
A48: 078 | B48: джин "BEEFEATER 40" 700мл | C48: 1100
A49: 080 | B49: ликёр "BAILEYS" 700мл | C49: 1500
A50: 081 | B50: ликёр "SHERIDAN'S" 500мл | C50: 1800
A51: 082 | B51: ликёр "Jagermeister" 500мл | C51: 1500
A52: 084 | B52: ликёр "KAHLUA" 700мл | C52: 1300
A53: 085 | B53: ликёр "DISARONNO" 700мл | C53: 1800
A54: 086 | B54: ром "BACARDI SUPERIOR" 750мл | C54: 1300
A55: 087 | B55: ром "BACARDI MOJITO" 700мл | C55: 1200
A56: 088 | B56: ром "BACARDI GOLD" 750мл | C56: 1300
A57: 089 | B57: ром "BACARDI BLACK" 750мл | C57: 1500
A58: 091 | B58: вино "CARLO ROSSI" красное 3л | C58: 1800
A59: 092 | B59: вино "CARLO ROSSI" белое 3л | C59: 1800
A60: 093 | B60: вино "CARLO ROSSI" розовое 3л | C60: 1800
A61: 094 | B61: вино "CARLO ROSSI" мускат красное 750мл | C61: 600
A62: 095 | B62: вино "CARLO ROSSI" белое 750мл | C62: 550
A63: 096 | B63: вино "CARLO ROSSI" розовое 750мл | C63: 550
A64: 098 | B64: вино "POLYPHENOL" красное 1800мл | C64: 900
A65: 099 | B65: вино "POLYPHENOL" белое 1800мл | C65: 900
A66: 102 | B66: вино "AKADAMA" красное 550мл | C66: 500
A67: 103 | B67: вино "AKADAMA" белое 550мл | C67: 500
A68: 105 | B68: вино со сливами стеклянная бутылочка 750ml | C68: 1100
A69: 106 | B69: вино "OTARU" белое 720мл | C69: 1200
A70: 107 | B70: вино "OTARU" белое сухое 720мл | C70: 1200
A71: 108 | B71: вино "HAKODATE" клубничное 720мл | C71: 1100
A72: 109 | B72: вино "HATSU SHIBORI" белое 720мл | C72: 1200
A73: 111 | B73: вино "NIKKA APPLE" яблочное 720мл | C73: 1000
A74: 113 | B74: вино грузинское "PIROSMANI" коричневое 750мл | C74: 1800
A75: 117 | B75: вино "MOЁT & CHANDON" белое 750мл | C75: 0
A76: 119 | B76: вино "JACOB'S CREEK MOSCATO" 750мл | C76: 1300
A77: 120 | B77: японское саке "KITA NO KATSU" стеклянная бутылочка 1800ml | C77: 1500
A78: 121 | B78: японское саке "KITA NO KATSU" тетра пак 1800ml | C78: 1400
A79: 123 | B79: виски "SUNTORY RESERVE" 750мл | C79: 2000
A80: 125 | B80: бренди "METAXA GRANDE FINE" 700мл | C80: 0
A81: 128 | B81: вино со сливами тетра пак 2л | C81: 800
A82: 129 | B82: вино "OTARU" красное 720мл | C82: 1100
A83: 130 | B83: вино "HATSU SHIBORI" розовое 720мл | C83: 1200
A84: 133 | B84: вино грузинское "SAPERAVI" синее 750мл | C84: 2000
A85: 134 | B85: вино грузинское "KVARELI" жёлтое 750мл | C85: 2000
A86: 136 | B86: вино "JACOB'S CREEK BRUT" 750мл | C86: 1400
A87: 201 | B87: мороженое различный | C87: 150
A88: 202 | B88: мороженое ваниль 2л | C88: 850
A89: 203 | B89: мороженое шоколаднованильный 2л | C89: 850
A90: 204-F | B90: жвачка квадратный FELIX | C90: 550
A91: 204-K | B91: жвачка квадратный КокаКола | C91: 550
A92: 204-M | B92: жвачка квадратный MARIO | C92: 550
A93: 205-A | B93: жвачка круглый Апельсиновый | C93: 650
A94: 205-B | B94: жвачка круглый Виноградный | C94: 650
A95: 205-K | B95: жвачка круглый Клубничный | C95: 650
A96: 206 | B96: жвачка гранулированная | C96: 750
A97: 208 | B97: конфеты леденцы различный | C97: 150
A98: 209 | B98: конфеты карамель различный | C98: 150
A99: 210 | B99: печенье различный | C99: 150
A100: 212 | B100: плитка шоколада meiji коричневый | C100: 120
A101: 213 | B101: плитка шоколада meiji чёрный | C101: 120
A102: 214 | B102: плитка шоколада meiji белый | C102: 120
A103: 215 | B103: плитка шоколада meiji клубничный | C103: 150
A104: 216 | B104: плитка шоколада meiji красный | C104: 120
A105: 217 | B105: конфеты шоколадные различный | C105: 300
A106: 218 | B106: конфеты шоколадные алмонд | C106: 300
A107: 219 | B107: конфеты шоколадные KITKAT | C107: 300
A108: 220 | B108: конфеты шоколадные SYLVEINE | C108: 300
A109: 221 | B109: конфеты шоколадные CHOCO PIE | C109: 300
A110: 222 | B110: конфеты шоколадные Alfort | C110: 300
A111: 224 | B111: плитка шоколада 2кг для приготовления | C111: 3200
A112: 226 | B112: плитка шоколада молочный большой 342г | C112: 700
A113: 227 | B113: конфеты шоколадные с изюмом 1.5кг | C113: 3000
A114: 228 | B114: конфеты шоколадные миндальные 1.36кг | C114: 3000
A115: 229 | B115: трюфельный шоколад 500г | C115: 1200
A116: 230 | B116: шоколадный сироп HERSHEY'S 623г | C116: 1300
A117: 231 | B117: смесь орехов 360г | C117: 700
A118: 232 | B118: сок бутылочный Кока-Кола 1.5л шт | C118: 250
A119: 233 | B119: сок баночный Кока-Кола 250мл*30шт ящик | C119: 2200
A120: 234 | B120: сок бутылочный Фанта виноградный 1.5л шт | C120: 250
A121: 235 | B121: сок DEKAVITA C 24бyт ящик | C121: 1700
A122: 235-P | B122: сок DEKAVITA C 6бyт пачка | C122: 500
A123: 236 | B123: сок бутылочный апельсиновый 1.5л шт | C123: 250
A124: 237 | B124: сок бутылочный виноградный 1.5л шт | C124: 250
A125: 238 | B125: сок бутылочный яблочный 1.5л шт | C125: 250
A126: 240 | B126: вода минеральная 2л*6бyт ящик | C126: 500
A127: 241 | B127: вода минеральная 500мл*24бyт ящик | C127: 1500
A128: 242 | B128: газированная вода 500мл*24бyт ящик | C128: 2000
A129: 245 | B129: чай зелёный 500мл*24бyт ящик | C129: 2000
A130: 246 | B130: чай зелёный жиросжигающий 500мл*24бyт ящик | C130: 4200
A131: 247 | B131: сок баночный яблочный 185мл*30бан ящик | C131: 1300
A132: 249 | B132: сок баночный апельсиновый 185мл*30бан ящик | C132: 1300
A133: 250 | B133: сок баночный различный 2вида 185мл*30бан ящик | C133: 1500
A134: 251 | B134: сок 100% баночный виноградный 190мл*30бан ящик | C134: 1800
A135: 252 | B135: сок 100% баночный яблочный 190мл*30бан ящик | C135: 1800
A136: 253 | B136: сок 100% баночный фруктовый 190мл*30бан ящик | C136: 1800
A137: 254 | B137: сок 100% баночный апельсиновый 190мл*30бан ящик | C137: 1800
A138: 255 | B138: сок витамин C 50бyт ящик | C138: 3800
A139: 256 | B139: сок витамин C 10бyт пачка | C139: 800
A140: 257 | B140: сок бутылочный C.C.Lemon 1.5л шт | C140: 250
A141: 260 | B141: сок бутылочный Vitamin Water 2л шт | C141: 250
A142: 261 | B142: сок томатный бутылочный 720мл шт | C142: 300
A143: 262 | B143: сок овощной бутылочный 720мл шт | C143: 300
A144: 263 | B144: растворимый кофе NESCAFE Excella 200г | C144: 1200
A145: 266-3 | B145: фильтр-кофе Blendy зелёный 8шт | C145: 250
A146: 268-B | B146: фильтр-кофе Blendy белый 100шт | C146: 2800
A147: 268-C | B147: фильтр-кофе Blendy синий 100шт | C147: 2800
A148: 268-K | B148: фильтр-кофе Blendy красный 100шт | C148: 2800
A149: 268-X | B149: фильтр-кофе Blendy коричневый 100шт | C149: 3000
A150: 269 | B150: фильтр-кофе Blendy различный 100шт | C150: 3000
A151: 270 | B151: кофе NESCAFE PRESIDENT 65г | C151: 1200
A152: 271 | B152: кофейные зёрна 500г | C152: 1000
A153: 272 | B153: молотый кофе UCC GOLDSPECIAL 280г | C153: 600
A154: 273 | B154: растворимый кофе MAXIM пакет 120г шт | C154: 550
A155: 275 | B155: растворимый кофе MAXIM пакет 120г*12шт ящик | C155: 6600
A156: 276 | B156: чай зелёный пакетик 50шт | C156: 500
A157: 277 | B157: чай зелёный заварной 150г | C157: 500
A158: 278 | B158: чай из коричневого риса заварной 200г | C158: 500
A159: 279 | B159: чай из коричневого риса пакетик 50шт | C159: 500
A160: 283 | B160: чай Lipton пакетик 100шт | C160: 500
A161: 284 | B161: чай Lipton Yellow Label пакетик 50шт | C161: 500
A162: 285 | B162: имбирный чай с лимоном пакетик 20шт | C162: 500
A163: 287 | B163: какао 300г | C163: 400
A164: 288 | B164: чистое 100% какао 110г | C164: 400
A165: 291 | B165: сок томатный баночный 20бан ящик | C165: 1500
A166: 292 | B166: сок овощной баночный 20бан ящик | C166: 1500
A167: 293 | B167: сок бутылочный Welch's виноградный 800мл шт | C167: 400
A168: 294 | B168: сок бутылочный Welch's грейпфрутовый 800мл шт | C168: 400
A169: 296 | B169: острые закуски KAKINOTANE 190г | C169: 300
A170: 297 | B170: шоколадный крем nutella | C170: 1600
A171: 299 | B171: чай с лимоном порошковый пакетик 470г | C171: 500
A172: 300 | B172: матча (порошковый зелёный чай) с молоком 200г | C172: 500
A173: 301 | B173: чай TWININGS различный 20шт | C173: 500
A174: 304 | B174: орехи кешью без солью 1.13кг | C174: 3000
A175: 305 | B175: смесь орехов 1.13кг | C175: 3200
A176: 306 | B176: фисташки 1.36кг | C176: 3200
A177: 310 | B177: сыр нарезанный | C177: 350
A178: 311 | B178: шоколад LINDOR 600г | C178: 3000
A179: 312 | B179: растворимый кофе синий пакет 120г шт | C179: 550
A180: 312-B | B180: растворимый кофе синий пакет 120г ящик | C180: 6600
A181: 314 | B181: чай с молоком порошковый 280г | C181: 600
A182: 315 | B182: арахис 500г | C182: 400
A183: 324 | B183: шоколад с вином Port Wine | C183: 350
A184: 327 | B184: сок 100% баночный различный 5вида 190мл*30бан ящик | C184: 2000
A185: 328 | B185: печенье с изюмом с кремом RAISINNE | C185: 350
A186: 329 | B186: сок 100% баночный ананасовый 190мл*30бан ящик | C186: 1800
A187: 333 | B187: кукса жёлтая CURRY 20шт ящик | C187: 3500
A188: 401 | B188: куриные окорочка 13.6кг ящик | C188: 8800
A189: 403 | B189: куриные целая 1кг | C189: 800
A190: 404 | B190: куриные крылышки 2кг | C190: 1500
A191: 405 | B191: куриные голень 2кг | C191: 1200
A192: 406 | B192: куриные грудки 2кг | C192: 1200
A193: 407 | B193: куриное бедро 2кг | C193: 1500
A194: 408 | B194: куриные сердца 2кг | C194: 2000
A195: 409 | B195: куриные печень 2кг | C195: 1000
A196: 410 | B196: куриные желудок 2кг | C196: 2000
A197: 413 | B197: жареная курица 1кг | C197: 1000
A198: 414 | B198: утиное целая 1.8кг | C198: 2000
A199: 417 | B199: шея свиные 2.5кг | C199: 2200
A200: 420 | B200: рёбрышки свиные 1кг | C200: 1500
... 225 more rows

Sheet Прайс
A1: № | B1: Name | C1: Price
A2: 003 | B2: пиво баночное "АСАХИ SUPER DRY" ящик 350мл*24шт | C2: 2500
A3: 004 | B3: пиво бутылочное "АСАХИ SUPER DRY" ящик 633мл*12шт | C3: 2500
A4: 009 | B4: безалкогольное баночное пиво "АСАХИ DRY ZERO" ящик 350мл*24шт | C4: 3000
A5: 022 | B5: виски "BLACK NIKKA" 4л | C5: 2200
A6: 023 | B6: виски "BLACK NIKKA" 1800мл | C6: 1200
A7: 024 | B7: виски "BLACK NIKKA" 700мл | C7: 550
A8: 037 | B8: виски "NIKKA SAMURAI" 750мл | C8: 5000
A9: 036 | B9: виски "TORYS CLASSIC" 4л | C9: 4000
A10: 026 | B10: виски "SUNTORY RED" 1920мл | C10: 1300
A11: 027 | B11: виски "SUNTORY KAKU" 700мл | C11: 1100
A12: 028 | B12: виски "JOHNNIE WALKER BLACK" 700мл | C12: 2400
A13: 029 | B13: виски "JOHNNIE WALKER RED" 700мл | C13: 1200
A14: 032 | B14: виски "CHIVAS REGAL 12years" 700мл | C14: 2500
A15: 033 | B15: виски "CHIVAS REGAL 18years" 700мл | C15: 6000
A16: 035 | B16: виски "JAMESON" 700мл | C16: 2000
A17: 041 | B17: виски "Ballantine's 12years" 700мл | C17: 0
A18: 123 | B18: виски "SUNTORY RESERVE" 750мл | C18: 2000
A19: 030 | B19: виски "JACK DANIEL'S" 700мл | C19: 2200
A20: 038 | B20: виски "JIM BEAM" 700мл | C20: 1200
A21: 039 | B21: ликёр "JIM BEAM APPLE" 700мл | C21: 1200
A22: 040 | B22: ликёр "JIM BEAM HONEY" 700мл | C22: 2000
A23: 031 | B23: ликёр "JACK HONEY" 700мл | C23: 2200
A24: 062 | B24: ликёр "MOZART CHOCOLATE" 500мл | C24: 1600
A25: 080 | B25: ликёр "BAILEYS" 700мл | C25: 1500
A26: 081 | B26: ликёр "SHERIDAN'S" 500мл | C26: 1800
A27: 082 | B27: ликёр "Jagermeister" 500мл | C27: 1500
A28: 084 | B28: ликёр "KAHLUA" 700мл | C28: 1300
A29: 085 | B29: ликёр "DISARONNO" 700мл | C29: 1800
A30: 068 | B30: бабайка тетра пак 1.8л | C30: 1200
A31: 069 | B31: бабайка стеклянная бутылочка 1.8л | C31: 1600
A32: 128 | B32: вино со сливами тетра пак 2л | C32: 800
A33: 105 | B33: вино со сливами стеклянная бутылочка 750ml | C33: 1100
A34: 111 | B34: вино "NIKKA APPLE" яблочное 720мл | C34: 1000
A35: 106 | B35: вино "OTARU" белое 720мл | C35: 1200
A36: 107 | B36: вино "OTARU" белое сухое 720мл | C36: 1200
A37: 129 | B37: вино "OTARU" красное 720мл | C37: 1100
A38: 108 | B38: вино "HAKODATE" клубничное 720мл | C38: 1100
A39: 109 | B39: вино "HATSU SHIBORI" белое 720мл | C39: 1200
A40: 130 | B40: вино "HATSU SHIBORI" розовое 720мл | C40: 1200
A41: 091 | B41: вино "CARLO ROSSI" красное 3л | C41: 1800
A42: 092 | B42: вино "CARLO ROSSI" белое 3л | C42: 1800
A43: 093 | B43: вино "CARLO ROSSI" розовое 3л | C43: 1800
A44: 094 | B44: вино "CARLO ROSSI" мускат красное 750мл | C44: 600
A45: 095 | B45: вино "CARLO ROSSI" белое 750мл | C45: 550
A46: 096 | B46: вино "CARLO ROSSI" розовое 750мл | C46: 550
A47: 102 | B47: вино "AKADAMA" красное 550мл | C47: 500
A48: 103 | B48: вино "AKADAMA" белое 550мл | C48: 500
A49: 104 | B49: вино "AKADAMA" белое 1800мл | C49: 1100
A50: 098 | B50: вино "POLYPHENOL" красное 1800мл | C50: 900
A51: 099 | B51: вино "POLYPHENOL" белое 1800мл | C51: 900
A52: 117 | B52: вино "MOЁT & CHANDON" белое 750мл | C52: 0
A53: 119 | B53: вино "JACOB'S CREEK MOSCATO" 750мл | C53: 1300
A54: 136 | B54: вино "JACOB'S CREEK BRUT" 750мл | C54: 1400
A55: 113 | B55: вино грузинское "PIROSMANI" коричневое 750мл | C55: 1800
A56: 133 | B56: вино грузинское "SAPERAVI" синее 750мл | C56: 2000
A57: 134 | B57: вино грузинское "KVARELI" жёлтое 750мл | C57: 2000
A58: 054 | B58: бренди "METAXA 5star" 700мл | C58: 1400
A59: 055 | B59: бренди "METAXA 7star" 700мл | C59: 1800
A60: 056 | B60: бренди "METAXA 12star" 700мл | C60: 3500
A61: 125 | B61: бренди "METAXA GRANDE FINE" 700мл | C61: 0
A62: 046 | B62: бренди "SUNTORY VO" 640мл | C62: 600
A63: 063 | B63: коньяк "CALVADOS XO" 700мл | C63: 4500
A64: 050 | B64: коньяк "HENNESSY VS" с коробки 700мл | C64: 3000
A65: 052 | B65: коньяк "HENNESSY VSOP" 700мл | C65: 7000
A66: 053 | B66: коньяк "CAMUS VSOP" 700мл | C66: 0
A67: 058 | B67: коньяк "REMY MARTIN VSOP" 700мл | C67: 0
A68: 059 | B68: коньяк "SAINT VIVANT VSOP" 700мл | C68: 0
A69: 060 | B69: коньяк "COURVOISIER VSOP" 700мл | C69: 3000
A70: 042 | B70: текила "SAUZA GOLD" 750мл | C70: 1700
A71: 043 | B71: текила "SAUZA SILVER" 750мл | C71: 1700
A72: 044 | B72: текила "OLMECA GOLD" 750мл | C72: 2200
A73: 045 | B73: текила "OLMECA SILVER" 750мл | C73: 2200
A74: 086 | B74: ром "BACARDI SUPERIOR" 750мл | C74: 1300
A75: 087 | B75: ром "BACARDI MOJITO" 700мл | C75: 1200
A76: 088 | B76: ром "BACARDI GOLD" 750мл | C76: 1300
A77: 089 | B77: ром "BACARDI BLACK" 750мл | C77: 1500
A78: 078 | B78: джин "BEEFEATER 40" 700мл | C78: 1100
A79: 064 | B79: водка "ICE" 500мл | C79: 550
A80: 066 | B80: водка "SUNTORY" 720мл | C80: 600
A81: 070 | B81: водка "STOLICHNAYA" 500мл | C81: 900
A82: 072 | B82: водка "SKY" 700мл | C82: 1200
A83: 074 | B83: водка "SPIRYTUS" 500мл | C83: 1700
A84: 075 | B84: водка "ABSOLUT" 750мл | C84: 1200
A85: 120 | B85: японское саке "KITA NO KATSU" стеклянная бутылочка 1800ml | C85: 1500
A86: 121 | B86: японское саке "KITA NO KATSU" тетра пак 1800ml | C86: 1400
A87: 235 | B87: сок DEKAVITA C 24бyт ящик | C87: 1700
A88: 235-P | B88: сок DEKAVITA C 6бyт пачка | C88: 500
A89: 255 | B89: сок витамин C 50бyт ящик | C89: 3800
A90: 256 | B90: сок витамин C 10бyт пачка | C90: 800
A91: 233 | B91: сок баночный Кока-Кола 250мл*30шт ящик | C91: 2200
A92: 232 | B92: сок бутылочный Кока-Кола 1.5л шт | C92: 250
A93: 234 | B93: сок бутылочный Фанта виноградный 1.5л шт | C93: 250
A94: 257 | B94: сок бутылочный C.C.Lemon 1.5л шт | C94: 250
A95: 260 | B95: сок бутылочный Vitamin Water 2л шт | C95: 250
A96: 238 | B96: сок бутылочный яблочный 1.5л шт | C96: 250
A97: 236 | B97: сок бутылочный апельсиновый 1.5л шт | C97: 250
A98: 237 | B98: сок бутылочный виноградный 1.5л шт | C98: 250
A99: 247 | B99: сок баночный яблочный 185мл*30бан ящик | C99: 1300
A100: 249 | B100: сок баночный апельсиновый 185мл*30бан ящик | C100: 1300
A101: 250 | B101: сок баночный различный 2вида 185мл*30бан ящик | C101: 1500
A102: 252 | B102: сок 100% баночный яблочный 190мл*30бан ящик | C102: 1800
A103: 254 | B103: сок 100% баночный апельсиновый 190мл*30бан ящик | C103: 1800
A104: 251 | B104: сок 100% баночный виноградный 190мл*30бан ящик | C104: 1800
A105: 329 | B105: сок 100% баночный ананасовый 190мл*30бан ящик | C105: 1800
A106: 253 | B106: сок 100% баночный фруктовый 190мл*30бан ящик | C106: 1800
A107: 327 | B107: сок 100% баночный различный 5вида 190мл*30бан ящик | C107: 2000
A108: 261 | B108: сок томатный бутылочный 720мл шт | C108: 300
A109: 262 | B109: сок овощной бутылочный 720мл шт | C109: 300
A110: 291 | B110: сок томатный баночный 20бан ящик | C110: 1500
A111: 292 | B111: сок овощной баночный 20бан ящик | C111: 1500
A112: 293 | B112: сок бутылочный Welch's виноградный 800мл шт | C112: 400
A113: 294 | B113: сок бутылочный Welch's грейпфрутовый 800мл шт | C113: 400
A114: 240 | B114: вода минеральная 2л*6бyт ящик | C114: 500
A115: 241 | B115: вода минеральная 500мл*24бyт ящик | C115: 1500
A116: 242 | B116: газированная вода 500мл*24бyт ящик | C116: 2000
A117: 245 | B117: чай зелёный 500мл*24бyт ящик | C117: 2000
A118: 246 | B118: чай зелёный жиросжигающий 500мл*24бyт ящик | C118: 4200
A119: 300 | B119: матча (порошковый зелёный чай) с молоком 200г | C119: 500
A120: 276 | B120: чай зелёный пакетик 50шт | C120: 500
A121: 279 | B121: чай из коричневого риса пакетик 50шт | C121: 500
A122: 824 | B122: чай зелёный премиум пакетик 20шт | C122: 400
A123: 277 | B123: чай зелёный заварной 150г | C123: 500
A124: 278 | B124: чай из коричневого риса заварной 200г | C124: 500
A125: 301 | B125: чай TWININGS различный 20шт | C125: 500
A126: 283 | B126: чай Lipton пакетик 100шт | C126: 500
A127: 284 | B127: чай Lipton Yellow Label пакетик 50шт | C127: 500
A128: 285 | B128: имбирный чай с лимоном пакетик 20шт | C128: 500
A129: 299 | B129: чай с лимоном порошковый пакетик 470г | C129: 500
A130: 731 | B130: чай с яблочном порошковый пакетик 470г | C130: 500
A131: 314 | B131: чай с молоком порошковый 280г | C131: 600
A132: 607 | B132: молоко длительного хранения 3.6% 1л шт | C132: 300
A133: 608 | B133: молоко длительного хранения 3.6% 1л ящик | C133: 3300
A134: 287 | B134: какао 300г | C134: 400
A135: 288 | B135: чистое 100% какао 110г | C135: 400
A136: 271 | B136: кофейные зёрна 500г | C136: 1000
A137: 272 | B137: молотый кофе UCC GOLDSPECIAL 280г | C137: 600
A138: 266-3 | B138: фильтр-кофе Blendy зелёный 8шт | C138: 250
A139: 268-B | B139: фильтр-кофе Blendy белый 100шт | C139: 2800
A140: 268-K | B140: фильтр-кофе Blendy красный 100шт | C140: 2800
A141: 268-C | B141: фильтр-кофе Blendy синий 100шт | C141: 2800
A142: 268-X | B142: фильтр-кофе Blendy коричневый 100шт | C142: 3000
A143: 269 | B143: фильтр-кофе Blendy различный 100шт | C143: 3000
A144: 810 | B144: растворимый кофе Blendy stick сладкое 30шт | C144: 600
A145: 811 | B145: растворимый кофе Blendy stick полусладкое 30шт | C145: 600
A146: 812 | B146: растворимый кофе Blendy stick не сладкое 30шт | C146: 600
A147: 263 | B147: растворимый кофе NESCAFE Excella 200г | C147: 1200
A148: 273 | B148: растворимый кофе MAXIM пакет 120г шт | C148: 550
A149: 275 | B149: растворимый кофе MAXIM пакет 120г*12шт ящик | C149: 6600
A150: 270 | B150: кофе NESCAFE PRESIDENT 65г | C150: 1200
A151: 312 | B151: растворимый кофе синий пакет 120г шт | C151: 550
A152: 312-B | B152: растворимый кофе синий пакет 120г ящик | C152: 6600
A153: 204-F | B153: жвачка квадратный FELIX | C153: 550
A154: 204-M | B154: жвачка квадратный MARIO | C154: 550
A155: 204-K | B155: жвачка квадратный КокаКола | C155: 550
A156: 205-K | B156: жвачка круглый Клубничный | C156: 650
A157: 205-B | B157: жвачка круглый Виноградный | C157: 650
A158: 205-A | B158: жвачка круглый Апельсиновый | C158: 650
A159: 206 | B159: жвачка гранулированная | C159: 750
A160: 208 | B160: конфеты леденцы различный | C160: 150
A161: 209 | B161: конфеты карамель различный | C161: 150
A162: 804 | B162: жевательный мармелад фруктовый 85г | C162: 150
A163: 805 | B163: жевательный мармелад сока 85г | C163: 150
A164: 806 | B164: жевательный мармелад виноградный 105г | C164: 250
A165: 822 | B165: конфеты HI-CHEW | C165: 200
A166: 823 | B166: конфеты лед | C166: 200
A167: 210 | B167: печенье различный | C167: 150
A168: 328 | B168: печенье с изюмом с кремом RAISINNE | C168: 350
A169: 220 | B169: конфеты шоколадные SYLVEINE | C169: 300
A170: 221 | B170: конфеты шоколадные CHOCO PIE | C170: 300
A171: 222 | B171: конфеты шоколадные Alfort | C171: 300
A172: 813 | B172: конфеты шоколадные CAPLICO ассорти 10шт | C172: 300
A173: 219 | B173: конфеты шоколадные KITKAT | C173: 300
A174: 218 | B174: конфеты шоколадные алмонд | C174: 300
A175: 820 | B175: конфеты шоколадные TIROL CHOCO 27шт | C175: 350
A176: 821 | B176: конфеты шоколадные KAKINOTANE | C176: 300
A177: 212 | B177: плитка шоколада meiji коричневый | C177: 120
A178: 213 | B178: плитка шоколада meiji чёрный | C178: 120
A179: 214 | B179: плитка шоколада meiji белый | C179: 120
A180: 215 | B180: плитка шоколада meiji клубничный | C180: 150
A181: 216 | B181: плитка шоколада meiji красный | C181: 120
A182: 803 | B182: плитка шоколада LOTTE хрустящий | C182: 150
A183: 226 | B183: плитка шоколада молочный большой 342г | C183: 700
A184: 217 | B184: конфеты шоколадные различный | C184: 300
A185: 324 | B185: шоколад с вином Port Wine | C185: 350
A186: 224 | B186: плитка шоколада 2кг для приготовления | C186: 3200
A187: 227 | B187: конфеты шоколадные с изюмом 1.5кг | C187: 3000
A188: 228 | B188: конфеты шоколадные миндальные 1.36кг | C188: 3000
A189: 229 | B189: трюфельный шоколад 500г | C189: 1200
A190: 311 | B190: шоколад LINDOR 600г | C190: 3000
A191: 800 | B191: конфеты шоколадные с клубникой 400г | C191: 2500
A192: 230 | B192: шоколадный сироп HERSHEY'S 623г | C192: 1300
A193: 807 | B193: чипсы вкус пиццы | C193: 150
A194: 296 | B194: острые закуски KAKINOTANE 190г | C194: 300
A195: 231 | B195: смесь орехов 360г | C195: 700
A196: 305 | B196: смесь орехов 1.13кг | C196: 3200
A197: 304 | B197: орехи кешью без солью 1.13кг | C197: 3000
A198: 306 | B198: фисташки 1.36кг | C198: 3200
A199: 315 | B199: арахис 500г | C199: 400
A200: 809 | B200: колбаса пальчиковая 50шт | C200: 600
... 225 more rows
